bitfinex/quotes_BTCUSD_20230907
["timestamp","ask_amount","ask_price","bid_price","bid_amount"]
[1694078407078,3.37567692,25783.0,25782.0,0.131786]
[1694078408840,3.44095692,25783.0,25782.0,0.131786]
[1694078409038,3.37567692,25783.0,25782.0,0.131786]
[1694078409815,3.44095692,25783.0,25782.0,0.131786]
[1694078410113,3.37567692,25783.0,25782.0,0.131786]
[1694078410524,3.44101692,25783.0,25782.0,0.131786]
[1694078410727,3.44173692,25783.0,25782.0,0.131786]
[1694078411152,3.44179692,25783.0,25782.0,0.131786]
[1694078411355,3.44119692,25783.0,25782.0,0.131786]
[1694078411511,3.37567692,25783.0,25782.0,0.131786]
[1694078411865,3.44125692,25783.0,25782.0,0.131786]
[1694078412069,3.37567692,25783.0,25782.0,0.131786]
[1694078413553,3.76232219,25783.0,25782.0,0.131786]
[1694078413755,3.82814219,25783.0,25782.0,0.131786]
[1694078414271,3.76232219,25783.0,25782.0,0.131786]
[1694078415679,1.82426892,25783.0,25782.0,0.131786]
[1694078416043,2.59997292,25783.0,25782.0,0.131786]
[1694078421136,3.37567692,25783.0,25782.0,0.131786]
[1694078421582,3.06142907,25783.0,25782.0,0.131786]
[1694078442974,0.02859063,25781.0,25776.0,0.03140937]
[1694078443177,0.02859063,25781.0,25777.0,0.01140937]
[1694078443178,0.27963071,25778.0,25777.0,0.01140937]
[1694078443385,0.54404151,25778.0,25777.0,0.01140937]
[1694078443587,2.83481027,25778.0,25777.0,0.01140937]
[1694078443797,2.85144835,25778.0,25777.0,0.01140937]
[1694078444802,2.85244835,25778.0,25777.0,0.01140937]
[1694078445020,2.85244835,25778.0,25777.0,0.01340937]
[1694078445227,3.30557362,25778.0,25777.0,0.01340937]
[1694078445430,3.81954442,25778.0,25777.0,0.01340937]
[1694078445615,3.81918442,25778.0,25777.0,0.01340937]
[1694078445814,3.81780442,25778.0,25777.0,0.01340937]
[1694078446014,3.81648442,25778.0,25777.0,0.01340937]
[1694078446338,3.81324442,25778.0,25777.0,0.01340937]
[1694078446552,3.53061371,25778.0,25777.0,0.01340937]
[1694078446767,3.46283371,25778.0,25777.0,0.10340937]
[1694078447180,3.47183371,25778.0,25777.0,0.10240937]
[1694078447384,3.54747371,25778.0,25777.0,0.10240937]
[1694078447637,3.47883371,25778.0,25777.0,0.10240937]
[1694078448043,3.25409362,25778.0,25777.0,0.01240937]
[1694078448244,3.25409362,25778.0,25777.0,0.03240937]
[1694078448474,3.32009362,25778.0,25777.0,0.03240937]
[1694078448792,3.32027362,25778.0,25777.0,0.03240937]
[1694078449013,3.32039362,25778.0,25777.0,0.03240937]
[1694078449262,3.32021362,25778.0,25777.0,0.03240937]
[1694078449510,3.31985362,25778.0,25777.0,0.03240937]
[1694078449721,3.31979362,25778.0,25777.0,0.03240937]
[1694078449930,3.31973362,25778.0,25777.0,0.03240937]
[1694078450095,3.31979362,25778.0,25777.0,0.03240937]
[1694078450395,3.25409362,25778.0,25777.0,0.03240937]
[1694078451298,3.31937362,25778.0,25777.0,0.03240937]
[1694078451642,3.31961362,25778.0,25777.0,0.03240937]
[1694078452043,3.31955362,25778.0,25777.0,0.03240937]
[1694078452468,3.31949362,25778.0,25777.0,0.03240937]
[1694078452848,3.32081362,25778.0,25777.0,0.03240937]
[1694078453272,3.32087362,25778.0,25777.0,0.03240937]
[1694078453468,3.25409362,25778.0,25777.0,0.03240937]
[1694078454490,3.32027362,25778.0,25777.0,0.03240937]
[1694078454637,3.25409362,25778.0,25777.0,0.03240937]
[1694078455248,3.31961362,25778.0,25777.0,0.03240937]
[1694078455452,3.31985362,25778.0,25777.0,0.03240937]
[1694078455770,3.32261362,25778.0,25777.0,0.03240937]
[1694078455977,3.32213362,25778.0,25777.0,0.03240937]
[1694078456180,3.32201362,25778.0,25777.0,0.03240937]
[1694078456439,3.32153362,25778.0,25777.0,0.03240937]
[1694078456645,3.32171362,25778.0,25777.0,0.03240937]
[1694078456851,3.32165362,25778.0,25777.0,0.03240937]
[1694078457465,3.32117362,25778.0,25777.0,0.03240937]
[1694078457882,3.32111362,25778.0,25777.0,0.03240937]
[1694078458050,3.32105362,25778.0,25777.0,0.03240937]
[1694078458457,3.32099362,25778.0,25777.0,0.03240937]
[1694078459010,3.32111362,25778.0,25777.0,0.03240937]
[1694078459217,3.32087362,25778.0,25777.0,0.03240937]
[1694078459668,3.32081362,25778.0,25777.0,0.03240937]
[1694078459866,3.32075362,25778.0,25777.0,0.03240937]
[1694078460098,3.32081362,25778.0,25777.0,0.03240937]
[1694078460464,3.32039362,25778.0,25777.0,0.03240937]
[1694078460767,3.46053466,25778.0,25777.0,0.03240937]
[1694078474159,3.46053466,25778.0,25777.0,0.01240937]
[1694078474399,3.46053466,25778.0,25777.0,0.03240937]
[1694078476851,3.46053466,25778.0,25777.0,0.01240937]
[1694078477081,3.46053466,25778.0,25777.0,0.03240937]
[1694078486526,3.74016537,25778.0,25777.0,0.03240937]
[1694078488573,3.46053466,25778.0,25777.0,0.03240937]
[1694078491736,3.07388939,25778.0,25777.0,0.03240937]
[1694078492184,3.07458662,25778.0,25777.0,0.03240937]
[1694078495151,3.07388939,25778.0,25777.0,0.03240937]
[1694078512145,3.35358887,25778.0,25777.0,0.03240937]
[1694078547549,3.35270862,25778.0,25777.0,0.03240937]
[1694078557042,3.14626758,25778.0,25777.0,0.03240937]
[1694078557247,2.8665681,25778.0,25777.0,0.03240937]
[1694078557448,3.11975304,25778.0,25777.0,0.03240937]
[1694078570335,3.39940384,25778.0,25777.0,0.03240937]
[1694078591326,3.11975304,25778.0,25777.0,0.03240937]
[1694078593176,3.39940889,25778.0,25777.0,0.03240937]
[1694078594370,3.11975304,25778.0,25777.0,0.03240937]
[1694078594575,3.39941151,25778.0,25777.0,0.03240937]
[1694078595189,3.11975304,25778.0,25777.0,0.03240937]
[1694078595400,3.39941305,25778.0,25777.0,0.03240937]
[1694078597160,3.11975304,25778.0,25777.0,0.03240937]
[1694078597386,3.39941665,25778.0,25777.0,0.03240937]
[1694078597623,3.11975304,25778.0,25777.0,0.03240937]
[1694078597800,3.39941653,25778.0,25777.0,0.03240937]
[1694078598006,3.11975304,25778.0,25777.0,0.03240937]
[1694078612026,3.12045367,25778.0,25777.0,0.03240937]
[1694078617950,0.79288867,25778.0,25777.0,0.03240937]
[1694078618165,3.12045367,25778.0,25777.0,0.03240937]
[1694078621255,2.86726873,25778.0,25777.0,0.03240937]
[1694078621474,3.06481947,25778.0,25777.0,0.03240937]
[1694078623876,3.04818139,25778.0,25777.0,0.03240937]
[1694078626072,2.85063065,25778.0,25777.0,0.03240937]
[1694078627089,3.09571202,25778.0,25777.0,0.03240937]
[1694078627779,3.11233432,25778.0,25777.0,0.03240937]
[1694078628842,3.11233432,25778.0,25777.0,0.00525405]
[1694078632043,3.32165193,25778.0,25777.0,0.00525405]
[1694078633329,3.11233432,25778.0,25777.0,0.00525405]
[1694078653661,3.39200047,25778.0,25777.0,0.00525405]
[1694078663793,0.31298908,25778.0,25777.0,0.00525405]
[1694078663998,0.31298908,25778.0,25777.0,1.55702405]
[1694078664213,0.26631853,25778.0,25777.0,2.33290905]
[1694078667107,0.26631853,25778.0,25777.0,1.55702405]
[1694078667987,0.45264613,25778.0,25777.0,1.55702405]
[1694078669893,0.21965053,25778.0,25777.0,1.55702405]
[1694078671365,0.35935282,25778.0,25777.0,1.55702405]
[1694078672206,0.17302522,25778.0,25777.0,1.55702405]
[1694078672415,0.17302522,25778.0,25777.0,0.78113905]
[1694078674664,0.17302522,25778.0,25777.0,0.77613905]
[1694078679250,0.26612038,25778.0,25777.0,0.77613905]
[1694078679449,0.17302522,25778.0,25777.0,0.77613905]
[1694078679649,0.26612042,25778.0,25777.0,0.77613905]
[1694078689034,0.26612042,25778.0,25777.0,1.55202405]
[1694078690542,0.26612042,25778.0,25777.0,0.77613905]
[1694078696191,0.17302522,25778.0,25777.0,0.77613905]
[1694078696962,0.26612593,25778.0,25777.0,0.77613905]
[1694078698182,0.17302522,25778.0,25777.0,0.77613905]
[1694078704383,0.35935282,25778.0,25777.0,0.77613905]
[1694078705828,0.17302522,25778.0,25777.0,0.77613905]
[1694078706199,0.35935282,25778.0,25777.0,0.77613905]
[1694078708276,0.21965053,25778.0,25777.0,0.77613905]
[1694078709205,0.45264613,25778.0,25777.0,0.77613905]
[1694078709769,0.21965053,25778.0,25777.0,0.77613905]
[1694078712482,0.21965053,25778.0,25777.0,0.00025405]
[1694078732186,0.21927981,25778.0,25777.0,0.00025405]
[1694078733892,0.17276599,25778.0,25777.0,0.00025405]
[1694078735228,0.17276599,25778.0,25777.0,0.79499932]
[1694078735467,0.03295221,25778.0,25777.0,4.54191529]
[1694078735672,0.03295221,25778.0,25777.0,3.42325432]
[1694078735901,0.01632991,25778.0,25777.0,3.42325432]
[1694078736112,0.00032991,25778.0,25777.0,4.54189587]
[1694078736323,0.32614138,25782.0,25781.0,0.00025405]
[1694078736531,0.13981378,25782.0,25781.0,0.00025405]
[1694078736711,0.32614138,25782.0,25781.0,0.00025405]
[1694078737131,0.13981378,25782.0,25781.0,0.00025405]
[1694078737335,0.14020127,25782.0,25781.0,0.00025405]
[1694078737517,0.14020127,25782.0,25781.0,0.00225405]
[1694078738742,0.14120127,25782.0,25781.0,0.00225405]
[1694078739722,0.16120081,25782.0,25781.0,0.00225405]
[1694078740280,0.25430532,25782.0,25781.0,0.00225405]
[1694078743101,0.11449154,25782.0,25781.0,0.00225405]
[1694078755210,0.02138703,25782.0,25781.0,0.77801905]
[1694078755422,0.02138703,25782.0,25781.0,1.55378405]
[1694078755835,0.11449154,25782.0,25781.0,0.00225405]
[1694078757331,0.64104975,25782.0,25781.0,0.00225405]
[1694078757548,0.73410595,25782.0,25781.0,0.00225405]
[1694078757757,0.6321566,25782.0,25781.0,0.00225405]
[1694078762144,0.5391004,25782.0,25781.0,0.00225405]
[1694078762565,0.4185004,25782.0,25781.0,1.55378405]
[1694078762804,0.4185004,25782.0,25781.0,0.77801905]
[1694078763001,0.51156278,25782.0,25781.0,0.77801905]
[1694078763203,0.4185004,25782.0,25781.0,0.77801905]
[1694078763344,0.4185004,25782.0,25781.0,0.00225405]
[1694078772171,0.604828,25782.0,25781.0,0.00225405]
[1694078773876,0.4185004,25782.0,25781.0,0.00225405]
[1694078774727,0.604828,25782.0,25781.0,0.00225405]
[1694078775389,0.60469239,25782.0,25781.0,0.00225405]
[1694078777260,0.46501422,25782.0,25781.0,0.00225405]
[1694078779156,0.69800982,25782.0,25781.0,0.00225405]
[1694078779577,0.46501422,25782.0,25781.0,0.00225405]
[1694078779786,0.69800982,25782.0,25781.0,0.00225405]
[1694078781121,0.51168222,25782.0,25781.0,0.00225405]
[1694078783052,0.63228222,25782.0,25781.0,0.00225405]
[1694078783291,0.81867601,25782.0,25781.0,0.00225405]
[1694078786571,0.63228222,25782.0,25781.0,0.00225405]
[1694078792578,0.81868291,25782.0,25781.0,0.00225405]
[1694078792991,0.63228222,25782.0,25781.0,0.00225405]
[1694078793965,0.81868377,25782.0,25781.0,0.00225405]
[1694078794166,0.63228222,25782.0,25781.0,0.00225405]
[1694078804939,0.51168222,25782.0,25781.0,0.00225405]
[1694078821225,0.25438263,25782.0,25781.0,0.00225405]
[1694078827400,0.25438263,25782.0,25781.0,0.77801905]
[1694078838607,0.25438263,25782.0,25781.0,0.00225405]
[1694078844955,0.4408097,25782.0,25781.0,0.00225405]
[1694078866485,0.25438263,25782.0,25781.0,0.00225405]
[1694078867084,0.4408045,25782.0,25781.0,0.00225405]
[1694078867482,0.25438263,25782.0,25781.0,0.00225405]
[1694078870000,0.44080606,25782.0,25781.0,0.00225405]
[1694078870768,0.25438263,25782.0,25781.0,0.00225405]
[1694078881786,0.2538114,25782.0,25781.0,0.00225405]
[1694078882466,0.25413016,25782.0,25781.0,0.00225405]
[1694078891188,0.44056135,25782.0,25781.0,0.00225405]
[1694078896354,0.44056135,25782.0,25781.0,1.55378405]
[1694078900254,0.44056135,25782.0,25781.0,0.77801905]
[1694078901817,0.44056135,25782.0,25781.0,0.00225405]
[1694078906422,0.44056135,25782.0,25781.0,0.77801905]
[1694078909904,0.44056135,25782.0,25781.0,0.00225405]
[1694078911961,0.20756575,25782.0,25781.0,1.55378405]
[1694078912138,0.20756575,25782.0,25781.0,0.77801905]
[1694078913570,0.34736929,25782.0,25781.0,0.77801905]
[1694078918151,0.1609381,25782.0,25781.0,0.77801905]
[1694078921088,0.1609381,25782.0,25781.0,0.00225405]
[1694078922189,0.34736929,25782.0,25781.0,0.00225405]
[1694078923544,0.35353776,25782.0,25781.0,0.00225405]
[1694078931125,0.35353776,25782.0,25781.0,0.77801905]
[1694078931527,0.35353776,25782.0,25781.0,1.55378405]
[1694078932380,0.16710657,25782.0,25781.0,1.55378405]
[1694078934843,0.16465589,25782.0,25781.0,1.55378405]
[1694078938102,0.16465589,25782.0,25781.0,0.77801905]
[1694078942284,0.16465589,25782.0,25781.0,1.55378405]
[1694078947026,0.16569298,25782.0,25781.0,1.55378405]
[1694078949898,0.16569298,25782.0,25781.0,0.77801905]
[1694078954047,0.16569298,25782.0,25781.0,1.55378405]
[1694078958139,0.16569298,25782.0,25781.0,0.77801905]
[1694078960986,0.16194298,25782.0,25781.0,0.77801905]
[1694078969876,0.16454473,25782.0,25781.0,0.77801905]
[1694078972198,0.16467957,25782.0,25781.0,0.77801905]
[1694078975927,0.35111076,25782.0,25781.0,0.77801905]
[1694078979406,0.35003617,25782.0,25781.0,0.77801905]
[1694078980518,0.16190114,25782.0,25781.0,0.77801905]
[1694078980816,0.34833233,25782.0,25781.0,0.77801905]
[1694078981324,0.16190114,25782.0,25781.0,0.77801905]
[1694078982031,0.11531027,25782.0,25781.0,2.71619432]
[1694078982296,0.0220976,25782.0,25781.0,2.71619432]
[1694078982461,0.0220976,25782.0,25781.0,1.94042932]
[1694078983024,0.0220976,25782.0,25781.0,1.93842932]
[1694078983224,0.0240976,25782.0,25781.0,1.95742932]
[1694078983632,0.0260976,25782.0,25781.0,1.97542932]
[1694078992468,0.0260976,25782.0,25781.0,0.03725405]
[1694078994500,0.11931027,25782.0,25781.0,0.03725405]
[1694078994745,0.25911381,25782.0,25781.0,0.03725405]
[1694079006290,0.11931027,25782.0,25781.0,0.03725405]
[1694079006977,0.25911381,25782.0,25781.0,0.03725405]
[1694079008657,0.11931027,25782.0,25781.0,0.03725405]
[1694079009059,0.11931027,25782.0,25781.0,1.58878405]
[1694079019522,0.11931027,25782.0,25781.0,0.81301905]
[1694079034264,0.25911381,25782.0,25781.0,0.81301905]
[1694079036420,0.25851381,25782.0,25781.0,0.81301905]
[1694079036625,0.25851381,25782.0,25781.0,1.58878405]
[1694079037241,0.16530114,25782.0,25781.0,1.58878405]
[1694079048685,0.25850112,25782.0,25781.0,1.58878405]
[1694079054024,0.25729029,25782.0,25781.0,1.58878405]
[1694079060226,0.25729029,25782.0,25781.0,0.81301905]
[1694079060467,0.16409031,25782.0,25781.0,0.81301905]
[1694079071185,0.3505215,25782.0,25781.0,0.81301905]
[1694079076798,0.16409031,25782.0,25781.0,0.81301905]
[1694079080680,0.16409031,25782.0,25781.0,0.84340488]
[1694079081011,0.16409031,25782.0,25781.0,0.85502561]
[1694079082617,0.16409031,25782.0,25781.0,0.81301905]
[1694079092074,0.25728722,25782.0,25781.0,2.36454905]
[1694079092462,0.11748368,25782.0,25781.0,2.36454905]
[1694079092692,0.02428677,25782.0,25781.0,2.36454905]
[1694079093127,0.02428677,25782.0,25781.0,1.58878405]
[1694079093854,0.11748368,25782.0,25781.0,1.58878405]
[1694079096256,0.11748368,25782.0,25781.0,2.36454905]
[1694079113570,0.02428677,25782.0,25781.0,2.36454905]
[1694079113999,0.11748368,25782.0,25781.0,2.36454905]
[1694079114148,0.02428677,25782.0,25781.0,2.36454905]
[1694079116072,0.11748368,25782.0,25781.0,2.36454905]
[1694079116229,0.02428677,25782.0,25781.0,2.36454905]
[1694079119150,0.11748368,25782.0,25781.0,2.36454905]
[1694079120654,0.11688368,25782.0,25781.0,2.36454905]
[1694079120860,0.11724302,25782.0,25781.0,2.36454905]
[1694079135382,0.02404611,25782.0,25781.0,2.36454905]
[1694079163151,0.02404611,25782.0,25781.0,2.75119432]
[1694079163352,0.02404611,25782.0,25781.0,2.36454905]
[1694079164951,0.02404611,25782.0,25781.0,0.81301905]
[1694079165665,0.02404611,25782.0,25781.0,1.58878405]
[1694079170177,0.02404611,25782.0,25781.0,2.36454905]
[1694079182632,0.02391127,25782.0,25781.0,2.36454905]
[1694079182848,0.02410708,25782.0,25781.0,2.36454905]
[1694079183250,0.01695878,25782.0,25781.0,2.36454905]
[1694079183674,0.02272935,25782.0,25781.0,2.36454905]
[1694079188517,0.02266935,25782.0,25781.0,2.36454905]
[1694079218620,0.02266935,25782.0,25781.0,0.03725405]
[1694079218834,0.02266935,25782.0,25781.0,2.36454905]
[1694079229856,0.02227935,25782.0,25781.0,2.36454905]
[1694079234146,0.01331227,25782.0,25781.0,2.36454905]
[1694079234353,0.01892583,25782.0,25781.0,2.36454905]
[1694079235820,0.01593928,25782.0,25781.0,2.36454905]
[1694079237863,0.02018702,25782.0,25781.0,2.36454905]
[1694079245571,0.0239164,25782.0,25781.0,2.36454905]
[1694079272985,0.02405744,25782.0,25781.0,2.36454905]
[1694079278721,0.11726314,25782.0,25781.0,0.03725405]
[1694079278927,0.11726314,25782.0,25781.0,0.81301905]
[1694079281603,0.02405744,25782.0,25781.0,0.81301905]
[1694079283463,0.02405744,25782.0,25781.0,1.58878405]
[1694079288208,0.02405744,25782.0,25781.0,0.81301905]
[1694079288439,0.02405744,25782.0,25781.0,1.58878405]
[1694079289497,0.02405744,25782.0,25781.0,0.81301905]
[1694079291039,0.02405744,25782.0,25781.0,1.58878405]
[1694079295462,0.01946934,25782.0,25781.0,1.58878405]
[1694079295939,0.11320885,25782.0,25781.0,1.58878405]
[1694079297037,0.02000315,25782.0,25781.0,1.58878405]
[1694079297534,0.42777055,25782.0,25781.0,1.58878405]
[1694079300021,0.30727055,25782.0,25781.0,1.58878405]
[1694079302784,0.11320885,25782.0,25781.0,1.58878405]
[1694079303017,0.02000315,25782.0,25781.0,1.58878405]
[1694079303219,0.02000315,25782.0,25781.0,2.36454905]
[1694079332156,0.00067485,25782.0,25781.0,2.36454905]
[1694079345951,0.41653223,25784.0,25781.0,2.36454905]
[1694079346778,0.41653223,25784.0,25781.0,2.34654905]
[1694079346955,0.41653223,25784.0,25783.0,0.00025405]
[1694079347165,0.41653223,25784.0,25783.0,1.55166205]
[1694079347797,0.25273223,25784.0,25783.0,1.55166205]
[1694079348205,0.25273223,25784.0,25783.0,1.55366205]
[1694079348911,0.11369724,25784.0,25783.0,1.55366205]
[1694079361593,0.25345658,25784.0,25783.0,1.55366205]
[1694079374966,0.16028369,25784.0,25783.0,1.55366205]
[1694079375397,0.25346807,25784.0,25783.0,1.55366205]
[1694079388777,0.47539202,25784.0,25783.0,0.77795805]
[1694079389366,0.38220764,25784.0,25783.0,0.77795805]
[1694079396535,0.16028369,25784.0,25783.0,0.77795805]
[1694079403803,0.63788832,25784.0,25783.0,0.00225405]
[1694079404930,0.87082055,25784.0,25783.0,0.00225405]
[1694079405157,0.63788832,25784.0,25783.0,0.00225405]
[1694079406318,0.77766996,25784.0,25783.0,0.00225405]
[1694079406529,0.63788832,25784.0,25783.0,0.00225405]
[1694079407262,0.5331855,25784.0,25783.0,0.00225405]
[1694079412971,0.34683971,25784.0,25783.0,0.00225405]
[1694079418802,0.34683971,25784.0,25783.0,0.77795805]
[1694079420263,0.34683971,25784.0,25783.0,0.00225405]
[1694079433447,0.34683971,25784.0,25783.0,0.77795805]
[1694079444301,0.5331855,25784.0,25783.0,0.77795805]
[1694079462056,0.16030121,25784.0,25783.0,2.32936605]
[1694079464674,0.25349545,25784.0,25783.0,2.32936605]
[1694079467828,0.25349545,25784.0,25783.0,1.55366205]
[1694079468051,0.25349545,25784.0,25783.0,2.32936605]
[1694079468261,0.11371859,25784.0,25783.0,2.32936605]
[1694079471931,0.11371859,25784.0,25783.0,1.55366205]
[1694079481086,0.11371859,25784.0,25783.0,0.77795805]
[1694079486515,0.52001647,25784.0,25783.0,0.00225405]
[1694079486898,0.63533676,25784.0,25783.0,0.00225405]
[1694079490457,0.63528456,25784.0,25783.0,0.00225405]
[1694079493555,0.542117,25784.0,25783.0,0.00225405]
[1694079493754,0.63528613,25784.0,25783.0,0.00225405]
[1694079494580,0.542117,25784.0,25783.0,0.00225405]
[1694079529012,0.54221591,25784.0,25783.0,0.00225405]
[1694079529621,0.5887997,25784.0,25783.0,0.00225405]
[1694079539688,0.54224902,25784.0,25783.0,0.00225405]
[1694079540623,0.54224902,25784.0,25783.0,0.77795805]
[1694079560160,0.36014228,25784.0,25783.0,0.77795805]
[1694079564328,0.54647741,25784.0,25783.0,0.77795805]
[1694079564567,0.63961187,25784.0,25783.0,0.77795805]
[1694079565318,0.40669296,25784.0,25783.0,0.77795805]
[1694079605456,2.46814526,25784.0,25783.0,0.00225405]
[1694079605668,2.70259045,25784.0,25783.0,0.00225405]
[1694079606294,2.90424246,25784.0,25783.0,0.00225405]
[1694079606503,2.93557282,25784.0,25783.0,0.00225405]
[1694079607962,3.16871095,25784.0,25783.0,0.00225405]
[1694079608168,2.93557282,25784.0,25783.0,0.00225405]
[1694079609215,3.32221809,25784.0,25783.0,0.00225405]
[1694079609417,3.57993857,25784.0,25783.0,0.00225405]
[1694079610470,3.32221809,25784.0,25783.0,0.00225405]
[1694079611284,3.51233552,25784.0,25783.0,0.00225405]
[1694079612125,3.32221809,25784.0,25783.0,0.00225405]
[1694079612464,3.08923572,25784.0,25783.0,0.00225405]
[1694079615681,3.32213493,25784.0,25783.0,0.00225405]
[1694079616634,3.08923572,25784.0,25783.0,0.00225405]
[1694079617241,3.32212672,25784.0,25783.0,0.00225405]
[1694079618951,3.51969261,25784.0,25783.0,0.00225405]
[1694079619298,3.32212672,25784.0,25783.0,0.00225405]
[1694079621783,3.54696544,25784.0,25783.0,0.00225405]
[1694079621977,3.32212672,25784.0,25783.0,0.00225405]
[1694079622451,2.54645272,25784.0,25783.0,0.00225405]
[1694079622820,2.73439447,25784.0,25783.0,0.00225405]
[1694079632027,2.73439447,25784.0,25783.0,0.02238274]
[1694079632712,2.54645272,25784.0,25783.0,0.02238274]
[1694079633047,2.54645272,25784.0,25783.0,0.00225405]
[1694079633540,2.54645272,25784.0,25783.0,0.02241049]
[1694079633781,2.78827653,25784.0,25783.0,0.00225405]
[1694079634612,2.54645272,25784.0,25783.0,0.00225405]
[1694079635204,2.54645272,25784.0,25783.0,0.02238944]
[1694079635414,3.32212672,25784.0,25783.0,0.02238944]
[1694079636415,2.54645272,25784.0,25783.0,0.02238944]
[1694079637370,3.32212672,25784.0,25783.0,0.02238944]
[1694079638388,2.54645272,25784.0,25783.0,0.02238944]
[1694079640159,3.32212672,25784.0,25783.0,0.02238944]
[1694079640365,3.08923572,25784.0,25783.0,0.02238944]
[1694079641772,3.32489533,25784.0,25783.0,0.02238944]
[1694079642185,3.08923572,25784.0,25783.0,0.02238944]
[1694079643020,3.08923572,25784.0,25783.0,0.00225405]
[1694079643567,3.36873841,25784.0,25783.0,0.00225405]
[1694079643974,3.36873841,25784.0,25783.0,0.01974694]
[1694079643975,3.08923572,25784.0,25783.0,0.01974694]
[1694079644161,3.37573841,25784.0,25783.0,0.01974694]
[1694079644601,3.09623572,25784.0,25783.0,0.01974694]
[1694079644818,3.09623572,25784.0,25783.0,0.00025405]
[1694079645086,3.10523572,25784.0,25783.0,0.00125405]
[1694079645291,3.26783572,25784.0,25783.0,0.00125405]
[1694079645501,3.25883572,25784.0,25783.0,0.00025405]
[1694079645713,3.25883572,25784.0,25782.0,0.00025405]
[1694079645925,2.76069045,25784.0,25783.0,0.00125405]
[1694079646118,2.88119045,25784.0,25783.0,0.0207388]
[1694079646566,2.88119045,25784.0,25783.0,0.00125405]
[1694079646814,2.87219045,25784.0,25783.0,0.0197388]
[1694079647250,2.70959045,25784.0,25783.0,0.0197388]
[1694079647623,2.70259045,25784.0,25783.0,0.0197388]
[1694079648049,2.71859045,25784.0,25783.0,0.0197388]
[1694079648373,2.71159045,25784.0,25783.0,0.0197388]
[1694079648600,2.70959045,25784.0,25783.0,0.0197388]
[1694079648845,3.07777314,25784.0,25783.0,0.02048475]
[1694079649064,3.07609314,25784.0,25783.0,0.02048475]
[1694079649274,3.07609314,25784.0,25783.0,0.001]
[1694079649477,3.07219314,25784.0,25783.0,0.001]
[1694079649684,3.21795314,25784.0,25780.0,0.00025405]
[1694079649903,0.53968009,25781.0,25780.0,0.00025405]
[1694079650125,3.8430831,25781.0,25780.0,0.00025405]
[1694079650347,4.06247623,25781.0,25780.0,0.00025405]
[1694079650551,4.06247623,25781.0,25780.0,0.01975888]
[1694079650758,4.21779723,25781.0,25780.0,0.01975888]
[1694079650969,4.38504937,25781.0,25780.0,0.01975888]
[1694079651172,4.38790951,25781.0,25780.0,0.04075888]
[1694079652362,4.38790951,25781.0,25780.0,0.05075888]
[1694079652363,4.38990951,25781.0,25780.0,0.05075888]
[1694079652818,4.5914725,25781.0,25780.0,0.05075888]
[1694079654259,4.17703168,25781.0,25780.0,0.05050483]
[1694079654923,4.17503168,25781.0,25780.0,0.01]
[1694079655354,4.17303168,25781.0,25778.0,0.00025405]
[1694079655567,3.66788641,25781.0,25780.0,0.021]
[1694079655780,3.78838641,25781.0,25780.0,0.021]
[1694079655964,3.78738641,25781.0,25780.0,0.012]
[1694079656378,3.78838641,25781.0,25780.0,0.021]
[1694079657114,3.78738641,25781.0,25780.0,0.009]
[1694079657346,3.78738641,25781.0,25780.0,0.021]
[1694079657347,3.78838641,25781.0,25780.0,0.021]
[1694079658569,4.02099541,25781.0,25780.0,0.021]
[1694079659689,4.20610436,25781.0,25780.0,0.021]
[1694079660152,4.02099541,25781.0,25780.0,0.021]
[1694079660409,4.20786242,25781.0,25780.0,0.021]
[1694079660836,4.02099541,25781.0,25780.0,0.021]
[1694079663134,4.20822118,25781.0,25780.0,0.021]
[1694079663332,4.02099541,25781.0,25780.0,0.021]
[1694079665674,4.20701711,25781.0,25780.0,0.021]
[1694079665894,4.02099541,25781.0,25780.0,0.021]
[1694079666295,4.20701581,25781.0,25780.0,0.021]
[1694079667031,4.23765209,25781.0,25780.0,0.021]
[1694079667379,4.00504309,25781.0,25780.0,0.021]
[1694079672606,4.14453949,25781.0,25780.0,0.021]
[1694079673417,4.14453931,25781.0,25780.0,0.021]
[1694079675614,4.38572645,25781.0,25780.0,0.021]
[1694079677224,4.44655193,25781.0,25780.0,0.021]
[1694079678583,4.30705571,25781.0,25780.0,0.021]
[1694079679348,4.4465736,25781.0,25780.0,0.021]
[1694079679550,4.30705571,25781.0,25780.0,0.021]
[1694079679971,4.12103531,25781.0,25780.0,0.021]
[1694079680217,4.30706585,25781.0,25780.0,0.021]
[1694079683513,4.53960403,25781.0,25780.0,0.021]
[1694079684765,4.35357349,25781.0,25780.0,0.021]
[1694079687405,4.12103531,25781.0,25780.0,0.021]
[1694079689313,4.10103531,25781.0,25780.0,0.021]
[1694079693485,4.38008113,25781.0,25780.0,0.021]
[1694079694303,4.57952113,25781.0,25780.0,0.021]
[1694079694543,4.65042126,25781.0,25780.0,0.021]
[1694079694751,4.96842781,25781.0,25780.0,0.021]
[1694079694956,4.65510126,25781.0,25780.0,0.021]
[1694079695160,4.65516126,25781.0,25780.0,0.021]
[1694079695365,4.65524126,25781.0,25780.0,0.012]
[1694079695592,4.65314126,25781.0,25780.0,0.012]
[1694079695779,0.02,25780.0,25776.0,0.00025405]
[1694079695978,0.02,25780.0,25772.0,0.1526]
[1694079695979,0.1205,25777.0,25775.0,0.00025405]
[1694079696187,0.38664527,25777.0,25776.0,0.00025405]
[1694079696389,1.5158745,25777.0,25776.0,0.00025405]
[1694079696589,1.28303027,25777.0,25776.0,0.00025405]
[1694079697026,1.28393613,25777.0,25776.0,0.00025405]
[1694079697206,3.00885373,25777.0,25776.0,0.00025405]
[1694079697381,3.24169238,25777.0,25776.0,0.00025405]
[1694079697586,3.00785373,25777.0,25776.0,0.00025405]
[1694079697789,3.00885373,25777.0,25776.0,0.00025405]
[1694079698363,3.24068693,25777.0,25776.0,0.00025405]
[1694079698596,3.00885373,25777.0,25776.0,0.00825405]
[1694079698780,3.00985373,25777.0,25776.0,0.02025405]
[1694079700492,3.24268534,25777.0,25776.0,0.02025405]
[1694079707390,3.24268534,25777.0,25776.0,0.02]
[1694079710424,3.00985373,25777.0,25776.0,0.02]
[1694079711509,3.00985373,25777.0,25776.0,0.02025405]
[1694079712820,3.00985373,25777.0,25776.0,0.02]
[1694079714444,3.24257651,25777.0,25776.0,0.02]
[1694079714768,3.00985373,25777.0,25776.0,0.02]
[1694079716542,3.2425693,25777.0,25776.0,0.02]
[1694079716760,3.2425693,25777.0,25776.0,0.04107333]
[1694079720419,3.00985373,25777.0,25776.0,0.04107333]
[1694079724789,3.89253957,25777.0,25776.0,0.04107333]
[1694079725043,3.68119968,25777.0,25776.0,0.04107333]
[1694079725255,3.68185968,25777.0,25776.0,0.02]
[1694079725454,3.68263968,25777.0,25776.0,0.02]
[1694079725690,3.68263968,25777.0,25776.0,0.012]
[1694079725691,3.68157968,25777.0,25776.0,0.012]
[1694079725954,3.3009666,25774.0,25771.0,0.19765405]
[1694079726187,0.21357887,25772.0,25771.0,0.00025405]
[1694079726446,2.54168687,25772.0,25771.0,0.00025405]
[1694079727345,2.54168687,25772.0,25771.0,0.02825405]